[Event "Rapid Tournament (RAP)"]
[Site "Biel, Switzerland"]
[Date "2026.07.12"]
[Round "8.14"]
[White "Moesching, Colin"]
[Black "Rohrer, Christophe"]
[Result "0-1"]
[TimeControl "15 + 5"]
[WhiteTitle "-"]
[BlackTitle "-"]
[WhiteFideId "1345036"]
[BlackFideId "1326546"]
[WhiteElo "1820"]
[BlackElo "2202"]

1. d4 {[%clk 00:15:07]} {[%emt 00:00:02]} Nf6 {[%clk 00:15:09]} {[%emt
00:00:02]} 2. Nf3 {[%clk 00:15:10]} {[%emt 00:00:04]} d5 {[%clk 00:15:12]} 3.
g3 {[%clk 00:15:13]} {[%emt 00:00:02]} c5 {[%clk 00:15:14]} {[%emt 00:00:03]} 4.
Bg2 {[%clk 00:15:16]} {[%emt 00:00:02]} cxd4 {[%clk 00:15:11]} {[%emt
00:00:08]} 5. O-O {[%clk 00:15:19]} {[%emt 00:00:02]} h6 {[%clk 00:14:47]}
{[%emt 00:00:29]} 6. b3 {[%clk 00:15:07]} {[%emt 00:00:17]} e6 {[%clk
00:14:44]} {[%emt 00:00:07]} 7. Bb2 {[%clk 00:15:09]} {[%emt 00:00:04]} Bc5
{[%clk 00:14:42]} {[%emt 00:00:07]} 8. Nxd4 {[%clk 00:14:45]} {[%emt 00:00:29]}
e5 {[%clk 00:13:32]} {[%emt 00:01:15]} 9. Nf3 {[%clk 00:14:48]} {[%emt
00:00:01]} e4 {[%clk 00:13:35]} {[%emt 00:00:03]} 10. Nd4 {[%clk 00:14:52]}
{[%emt 00:00:01]} Nc6 {[%clk 00:13:23]} {[%emt 00:00:17]} 11. c4 {[%clk
00:14:33]} {[%emt 00:00:23]} Bg4 {[%clk 00:11:49]} {[%emt 00:01:39]} 12. h3
{[%clk 00:14:29]} {[%emt 00:00:09]} Nxd4 {[%clk 00:10:03]} {[%emt 00:01:52]} 13.
hxg4 {[%clk 00:13:44]} {[%emt 00:00:49]} dxc4 {[%clk 00:10:03]} {[%emt
00:00:06]} 14. b4 {[%clk 00:13:37]} {[%emt 00:00:12]} Bb6 {[%clk 00:09:55]}
{[%emt 00:00:13]} 15. e3 {[%clk 00:12:26]} {[%emt 00:01:16]} Nc6 {[%clk
00:09:29]} {[%emt 00:00:32]} 16. b5 {[%clk 00:11:45]} {[%emt 00:00:45]} Nb4
{[%clk 00:07:58]} {[%emt 00:01:36]} 17. Nc3 {[%clk 00:10:53]} {[%emt 00:00:56]}
Qxd1 {[%clk 00:07:37]} {[%emt 00:00:27]} 18. Rfxd1 {[%clk 00:10:54]} {[%emt
00:00:04]} Nd3 {[%clk 00:07:38]} {[%emt 00:00:03]} 19. Ba3 {[%clk 00:10:55]}
{[%emt 00:00:05]} Nxg4 {[%clk 00:07:09]} {[%emt 00:00:34]} 20. Nxe4 {[%clk
00:10:39]} {[%emt 00:00:20]} Rd8 {[%clk 00:04:43]} {[%emt 00:02:32]} 21. Bf3
{[%clk 00:10:10]} {[%emt 00:00:34]} Nge5 {[%clk 00:04:38]} {[%emt 00:00:09]} 22.
Be2 {[%clk 00:09:49]} {[%emt 00:00:26]} Rd5 {[%clk 00:03:47]} {[%emt 00:00:56]}
23. Rab1 {[%clk 00:07:58]} {[%emt 00:01:56]} Kd8 {[%clk 00:03:48]} {[%emt
00:00:04]} 24. Kg2 {[%clk 00:07:19]} {[%emt 00:00:45]} Kc7 {[%clk 00:03:15]}
{[%emt 00:00:38]} 25. f4 {[%clk 00:06:47]} {[%emt 00:00:37]} Ng6 {[%clk
00:03:01]} {[%emt 00:00:19]} 26. Bxd3 {[%clk 00:05:55]} {[%emt 00:00:57]} cxd3
{[%clk 00:03:00]} {[%emt 00:00:06]} 27. Rbc1+ {[%clk 00:05:55]} {[%emt
00:00:05]} Kb8 {[%clk 00:02:57]} {[%emt 00:00:08]} 28. Kf3 {[%clk 00:05:17]}
{[%emt 00:00:43]} Rhd8 {[%clk 00:02:46]} {[%emt 00:00:15]} 29. Bd6+ {[%clk
00:05:21]} {[%emt 00:00:01]} R8xd6 {[%clk 00:02:42]} {[%emt 00:00:10]} 30. Nxd6
{[%clk 00:05:24]} {[%emt 00:00:02]} Rxd6 {[%clk 00:02:46]} {[%emt 00:00:01]} 31.
Rc3 {[%clk 00:05:05]} {[%emt 00:00:24]} d2 {[%clk 00:02:42]} {[%emt 00:00:09]}
32. Ke2 {[%clk 00:05:07]} {[%emt 00:00:03]} Ba5 {[%clk 00:02:39]} {[%emt
00:00:08]} 33. Rd3 {[%clk 00:05:11]} Rxd3 {[%clk 00:02:19]} {[%emt 00:00:24]}
34. Kxd3 {[%clk 00:05:15]} {[%emt 00:00:02]} Kc7 {[%clk 00:02:17]} {[%emt
00:00:07]} 35. e4 {[%clk 00:04:54]} {[%emt 00:00:26]} Nf8 {[%clk 00:02:19]}
{[%emt 00:00:02]} 36. e5 {[%clk 00:04:29]} {[%emt 00:00:31]} Ne6 {[%clk
00:02:04]} {[%emt 00:00:20]} 37. Kc4 {[%clk 00:04:13]} {[%emt 00:00:21]} g6
{[%clk 00:01:52]} {[%emt 00:00:17]} 38. Kd5 {[%clk 00:04:11]} {[%emt 00:00:06]}
b6 {[%clk 00:01:48]} {[%emt 00:00:10]} 39. Kc4 {[%clk 00:03:47]} {[%emt
00:00:28]} Nc5 {[%clk 00:01:48]} {[%emt 00:00:05]} 40. g4 {[%clk 00:03:04]}
{[%emt 00:00:48]} Ne4 {[%clk 00:01:44]} {[%emt 00:00:09]} 0-1

[Event "Rapid Tournament (RAP)"]
[Site "Biel, Switzerland"]
[Date "2026.07.12"]
[Round "8.15"]
[White "Haimovich, Tal"]
[Black "Xu, Chang(Cq)"]
[Result "0-1"]
[TimeControl "15 + 5"]
[WhiteTitle "-"]
[BlackTitle "-"]
[WhiteFideId "2801698"]
[BlackFideId "8641757"]
[WhiteElo "2245"]
[BlackElo "2082"]

1. Nf3 {[%clk 00:15:08]} {[%emt 00:00:01]} Nf6 {[%clk 00:15:07]} {[%emt
00:00:03]} 2. b3 {[%clk 00:15:12]} {[%emt 00:00:03]} d5 {[%clk 00:15:05]}
{[%emt 00:00:05]} 3. Bb2 {[%clk 00:15:15]} {[%emt 00:00:02]} c5 {[%clk
00:14:37]} {[%emt 00:00:33]} 4. e3 {[%clk 00:15:18]} {[%emt 00:00:02]} Nc6
{[%clk 00:14:22]} {[%emt 00:00:20]} 5. Bb5 {[%clk 00:15:21]} {[%emt 00:00:02]}
e6 {[%clk 00:14:08]} {[%emt 00:00:19]} 6. Bxc6+ {[%clk 00:14:24]} {[%emt
00:01:03]} bxc6 {[%clk 00:14:08]} {[%emt 00:00:05]} 7. Ne5 {[%clk 00:14:26]}
{[%emt 00:00:02]} Qc7 {[%clk 00:13:58]} {[%emt 00:00:14]} 8. O-O {[%clk
00:14:15]} {[%emt 00:00:17]} Bd6 {[%clk 00:13:56]} {[%emt 00:00:07]} 9. f4
{[%clk 00:14:19]} {[%emt 00:00:02]} O-O {[%clk 00:13:53]} {[%emt 00:00:08]} 10.
d3 {[%clk 00:13:47]} {[%emt 00:00:37]} Nd7 {[%clk 00:13:31]} {[%emt 00:00:26]}
11. Qh5 {[%clk 00:11:34]} {[%emt 00:02:18]} f6 {[%clk 00:11:02]} {[%emt
00:02:34]} 12. Nxd7 {[%clk 00:09:39]} {[%emt 00:02:00]} Bxd7 {[%clk 00:11:03]}
{[%emt 00:00:04]} 13. Nd2 {[%clk 00:09:43]} {[%emt 00:00:01]} a5 {[%clk
00:10:45]} {[%emt 00:00:24]} 14. a4 {[%clk 00:09:39]} {[%emt 00:00:09]} Be8
{[%clk 00:10:00]} {[%emt 00:00:49]} 15. Qg4 {[%clk 00:09:41]} {[%emt 00:00:03]}
Qe7 {[%clk 00:09:58]} {[%emt 00:00:08]} 16. e4 {[%clk 00:09:29]} {[%emt
00:00:17]} Bc7 {[%clk 00:06:05]} {[%emt 00:03:57]} 17. Rae1 {[%clk 00:08:06]}
{[%emt 00:01:28]} Bd7 {[%clk 00:05:57]} {[%emt 00:00:13]} 18. Qf3 {[%clk
00:07:57]} {[%emt 00:00:15]} Qf7 {[%clk 00:05:51]} {[%emt 00:00:07]} 19. c4
{[%clk 00:06:59]} {[%emt 00:01:07]} Rfe8 {[%clk 00:04:55]} {[%emt 00:01:01]} 20.
Ba3 {[%clk 00:06:56]} {[%emt 00:00:08]} Bb6 {[%clk 00:04:51]} {[%emt 00:00:09]}
21. Qf2 {[%clk 00:06:44]} {[%emt 00:00:16]} d4 {[%clk 00:04:47]} {[%emt
00:00:09]} 22. Qh4 {[%clk 00:06:16]} {[%emt 00:00:34]} Reb8 {[%clk 00:04:13]}
{[%emt 00:00:39]} 23. Rf3 {[%clk 00:06:09]} {[%emt 00:00:11]} Be8 {[%clk
00:03:40]} {[%emt 00:00:38]} 24. Rh3 {[%clk 00:05:55]} {[%emt 00:00:19]} h6
{[%clk 00:03:41]} {[%emt 00:00:04]} 25. g4 {[%clk 00:05:33]} {[%emt 00:00:28]}
Bc7 {[%clk 00:03:33]} {[%emt 00:00:13]} 26. Rf1 {[%clk 00:05:13]} {[%emt
00:00:24]} Bd6 {[%clk 00:03:08]} {[%emt 00:00:31]} 27. Qf2 {[%clk 00:04:19]}
{[%emt 00:00:58]} Bd7 {[%clk 00:02:53]} {[%emt 00:00:20]} 28. Rf3 {[%clk
00:04:17]} {[%emt 00:00:06]} Rf8 {[%clk 00:02:28]} {[%emt 00:00:31]} 29. Qg2
{[%clk 00:04:20]} {[%emt 00:00:02]} Rab8 {[%clk 00:02:17]} {[%emt 00:00:17]} 30.
h4 {[%clk 00:04:08]} {[%emt 00:00:16]} Qe7 {[%clk 00:01:59]} {[%emt 00:00:23]}
31. Qe2 {[%clk 00:03:55]} {[%emt 00:00:18]} Qf7 {[%clk 00:01:57]} {[%emt
00:00:07]} 32. R3f2 {[%clk 00:03:20]} {[%emt 00:00:40]} Rbe8 {[%clk 00:01:56]}
{[%emt 00:00:05]} 33. Rg2 {[%clk 00:02:41]} {[%emt 00:00:45]} Rb8 {[%clk
00:01:18]} {[%emt 00:00:43]} 34. Qe1 {[%clk 00:02:33]} {[%emt 00:00:13]} Rfe8
{[%clk 00:01:06]} {[%emt 00:00:17]} 35. Rf3 {[%clk 00:02:24]} {[%emt 00:00:14]}
Kh8 {[%clk 00:01:02]} {[%emt 00:00:09]} 36. Qd1 {[%clk 00:02:17]} {[%emt
00:00:12]} f5 {[%clk 00:00:59]} {[%emt 00:00:09]} 37. g5 {[%clk 00:02:10]}
{[%emt 00:00:11]} Qh5 {[%clk 00:00:53]} {[%emt 00:00:10]} 38. e5 {[%clk
00:01:37]} {[%emt 00:00:39]} Be7 {[%clk 00:00:53]} {[%emt 00:00:05]} 39. Qf1
{[%clk 00:01:38]} {[%emt 00:00:04]} Qg6 {[%clk 00:00:34]} {[%emt 00:00:23]} 40.
Qe2 {[%clk 00:01:13]} {[%emt 00:00:32]} Qh5 {[%clk 00:00:32]} {[%emt 00:00:07]}
41. Qf2 {[%clk 00:01:10]} {[%emt 00:00:07]} Rg8 {[%clk 00:00:29]} {[%emt
00:00:08]} 42. Qf1 {[%clk 00:01:04]} {[%emt 00:00:12]} Qf7 {[%clk 00:00:22]}
{[%emt 00:00:10]} 43. Rh3 {[%clk 00:01:04]} {[%emt 00:00:06]} Be8 {[%clk
00:00:19]} {[%emt 00:00:09]} 44. Qe1 {[%clk 00:00:54]} {[%emt 00:00:15]} Qf8
{[%clk 00:00:15]} {[%emt 00:00:09]} 45. Qe2 {[%clk 00:00:55]} {[%emt 00:00:03]}
Qf7 {[%clk 00:00:16]} {[%emt 00:00:04]} 46. Rh1 {[%clk 00:00:56]} {[%emt
00:00:04]} Qh5 {[%clk 00:00:18]} {[%emt 00:00:04]} 47. Qxh5 {[%clk 00:00:51]}
{[%emt 00:00:10]} Bxh5 {[%clk 00:00:21]} {[%emt 00:00:02]} 48. Kf2 {[%clk
00:00:52]} {[%emt 00:00:04]} Rb7 {[%clk 00:00:23]} {[%emt 00:00:03]} 49. Rb1
{[%clk 00:00:31]} {[%emt 00:00:26]} Kh7 {[%clk 00:00:25]} {[%emt 00:00:02]} 50.
Rg3 {[%clk 00:00:26]} {[%emt 00:00:10]} Bg4 {[%clk 00:00:27]} {[%emt 00:00:03]}
51. Rbg1 {[%clk 00:00:21]} {[%emt 00:00:09]} Rgb8 {[%clk 00:00:28]} {[%emt
00:00:05]} 52. Rb1 {[%clk 00:00:25]} {[%emt 00:00:02]} Kg6 {[%clk 00:00:30]}
{[%emt 00:00:01]} 53. Rg2 {[%clk 00:00:26]} {[%emt 00:00:05]} hxg5 {[%clk
00:00:30]} {[%emt 00:00:06]} 54. hxg5 {[%clk 00:00:27]} {[%emt 00:00:03]} Rh8
{[%clk 00:00:33]} {[%emt 00:00:02]} 55. Rbg1 {[%clk 00:00:26]} {[%emt
00:00:06]} Rhb8 {[%clk 00:00:32]} {[%emt 00:00:06]} 56. Rb1 {[%clk 00:00:29]}
{[%emt 00:00:02]} Rh8 {[%clk 00:00:36]} {[%emt 00:00:01]} 57. Rg3 {[%clk
00:00:28]} {[%emt 00:00:06]} Rbb8 {[%clk 00:00:38]} {[%emt 00:00:04]} 58. Rbg1
{[%clk 00:00:29]} {[%emt 00:00:04]} Rh4 {[%clk 00:00:38]} {[%emt 00:00:05]} 59.
Ke1 {[%clk 00:00:19]} {[%emt 00:00:15]} Rbh8 {[%clk 00:00:36]} {[%emt
00:00:06]} 60. R3g2 {[%clk 00:00:18]} {[%emt 00:00:07]} Rh3 {[%clk 00:00:31]}
{[%emt 00:00:09]} 61. Rg3 {[%clk 00:00:21]} {[%emt 00:00:02]} Rh2 {[%clk
00:00:30]} {[%emt 00:00:06]} 62. Bc1 {[%clk 00:00:15]} {[%emt 00:00:11]} Re2+
{[%clk 00:00:33]} {[%emt 00:00:03]} 63. Kf1 {[%clk 00:00:17]} {[%emt 00:00:03]}
Rhh2 {[%clk 00:00:32]} {[%emt 00:00:05]} 64. R3g2 {[%clk 00:00:10]} {[%emt
00:00:12]} Rexg2 {[%clk 00:00:34]} 65. Rxg2 {[%clk 00:00:12]} {[%emt 00:00:06]}
Bh3 {[%clk 00:00:38]} {[%emt 00:00:01]} 0-1

[Event "Rapid Tournament (RAP)"]
[Site "Biel, Switzerland"]
[Date "2026.07.12"]
[Round "8.16"]
[White "Amonatov, Farrukh"]
[Black "Egli, Urs"]
[Result "1-0"]
[TimeControl "15 + 5"]
[WhiteTitle "-"]
[BlackTitle "-"]
[WhiteFideId "14700077"]
[BlackFideId "1306685"]
[WhiteElo "2593"]
[BlackElo "1964"]

1. e4 {[%clk 00:15:07]} {[%emt 00:00:01]} g6 {[%clk 00:15:09]} {[%emt
00:00:01]} 2. d4 {[%clk 00:15:11]} Bg7 {[%clk 00:15:13]} {[%emt 00:00:05]} 3.
Nf3 {[%clk 00:15:15]} c5 {[%clk 00:15:17]} 4. dxc5 {[%clk 00:15:18]} {[%emt
00:00:01]} Qa5+ {[%clk 00:15:19]} {[%emt 00:00:04]} 5. Nc3 {[%clk 00:15:22]}
{[%emt 00:00:01]} Bxc3+ {[%clk 00:15:20]} {[%emt 00:00:04]} 6. bxc3 {[%clk
00:15:26]} {[%emt 00:00:01]} Qxc3+ {[%clk 00:15:24]} 7. Bd2 {[%clk 00:15:29]}
{[%emt 00:00:01]} Qxc5 {[%clk 00:15:18]} {[%emt 00:00:12]} 8. Bd3 {[%clk
00:15:33]} {[%emt 00:00:01]} d6 {[%clk 00:15:07]} {[%emt 00:00:16]} 9. O-O
{[%clk 00:15:27]} {[%emt 00:00:10]} Bg4 {[%clk 00:14:41]} {[%emt 00:00:32]} 10.
h3 {[%clk 00:15:25]} {[%emt 00:00:06]} Bxf3 {[%clk 00:14:45]} {[%emt 00:00:02]}
11. Qxf3 {[%clk 00:15:28]} {[%emt 00:00:03]} Nd7 {[%clk 00:14:33]} {[%emt
00:00:16]} 12. Rab1 {[%clk 00:15:31]} {[%emt 00:00:01]} Ngf6 {[%clk 00:13:32]}
{[%emt 00:01:07]} 13. Bh6 {[%clk 00:15:08]} {[%emt 00:00:27]} Rb8 {[%clk
00:11:05]} {[%emt 00:02:33]} 14. Rb5 {[%clk 00:14:54]} {[%emt 00:00:19]} Qc7
{[%clk 00:10:59]} {[%emt 00:00:10]} 15. Qe3 {[%clk 00:14:48]} {[%emt 00:00:11]}
a6 {[%clk 00:10:56]} {[%emt 00:00:09]} 16. Rb2 {[%clk 00:14:42]} {[%emt
00:00:10]} Ne5 {[%clk 00:10:00]} {[%emt 00:01:02]} 17. Rfb1 {[%clk 00:14:37]}
{[%emt 00:00:09]} Nfd7 {[%clk 00:09:37]} {[%emt 00:00:29]} 18. f4 {[%clk
00:14:32]} {[%emt 00:00:08]} Nxd3 {[%clk 00:08:54]} {[%emt 00:00:50]} 19. cxd3
{[%clk 00:14:35]} {[%emt 00:00:02]} f6 {[%clk 00:08:36]} {[%emt 00:00:23]} 20.
d4 {[%clk 00:14:23]} {[%emt 00:00:16]} e5 {[%clk 00:06:48]} {[%emt 00:01:54]}
21. Rc1 {[%clk 00:10:14]} {[%emt 00:04:14]} Qa5 {[%clk 00:06:41]} {[%emt
00:00:11]} 22. Qb3 {[%clk 00:10:18]} {[%emt 00:00:02]} Ke7 {[%clk 00:05:49]}
{[%emt 00:00:57]} 23. fxe5 {[%clk 00:10:21]} {[%emt 00:00:02]} dxe5 {[%clk
00:05:29]} {[%emt 00:00:25]} 24. Bd2 {[%clk 00:10:23]} {[%emt 00:00:02]} 1-0

[Event "Rapid Tournament (RAP)"]
[Site "Biel, Switzerland"]
[Date "2026.07.12"]
[Round "8.17"]
[White "Gautier, Anand"]
[Black "Pinson, Clement"]
[Result "1-0"]
[TimeControl "15 + 5"]
[WhiteTitle "-"]
[BlackTitle "-"]
[WhiteFideId "26010186"]
[BlackFideId "26098660"]
[WhiteElo "2223"]
[BlackElo "1924"]

1. e4 {[%clk 00:15:08]} {[%emt 00:22:28]} e5 {[%clk 00:15:09]} {[%emt
00:00:01]} 2. Nf3 {[%clk 00:15:12]} {[%emt 00:00:01]} Nc6 {[%clk 00:15:13]}
{[%emt 00:00:02]} 3. Bc4 {[%clk 00:15:15]} {[%emt 00:00:03]} Nf6 {[%clk
00:15:17]} 4. d3 {[%clk 00:15:19]} Be7 {[%clk 00:15:20]} {[%emt 00:00:02]} 5.
O-O {[%clk 00:15:22]} {[%emt 00:00:02]} O-O {[%clk 00:15:18]} {[%emt 00:00:06]}
6. a4 {[%clk 00:15:26]} {[%emt 00:00:02]} d5 {[%clk 00:15:12]} {[%emt
00:00:11]} 7. exd5 {[%clk 00:15:29]} {[%emt 00:00:01]} Nxd5 {[%clk 00:15:16]}
{[%emt 00:00:02]} 8. Re1 {[%clk 00:15:29]} {[%emt 00:00:04]} Bf6 {[%clk
00:14:41]} {[%emt 00:00:40]} 9. Nbd2 {[%clk 00:15:29]} {[%emt 00:00:05]} Bg4
{[%clk 00:14:30]} {[%emt 00:00:17]} 10. h3 {[%clk 00:15:30]} {[%emt 00:00:04]}
Bh5 {[%clk 00:14:32]} {[%emt 00:00:03]} 11. Ne4 {[%clk 00:15:33]} {[%emt
00:00:01]} Be7 {[%clk 00:14:27]} {[%emt 00:00:11]} 12. Ng3 {[%clk 00:15:34]}
{[%emt 00:00:03]} Bxf3 {[%clk 00:14:09]} {[%emt 00:00:23]} 13. Qxf3 {[%clk
00:15:38]} {[%emt 00:00:02]} Nb6 {[%clk 00:13:55]} {[%emt 00:00:19]} 14. Ba2
{[%clk 00:14:07]} {[%emt 00:01:35]} Nd4 {[%clk 00:13:21]} {[%emt 00:00:39]} 15.
Qd1 {[%clk 00:14:10]} {[%emt 00:00:02]} Bd6 {[%clk 00:11:47]} {[%emt 00:01:40]}
16. c3 {[%clk 00:14:01]} {[%emt 00:00:13]} Nc6 {[%clk 00:11:34]} {[%emt
00:00:18]} 17. b4 {[%clk 00:13:27]} {[%emt 00:00:40]} a5 {[%clk 00:11:31]}
{[%emt 00:00:08]} 18. b5 {[%clk 00:13:30]} {[%emt 00:00:02]} Ne7 {[%clk
00:11:34]} {[%emt 00:00:01]} 19. Bb3 {[%clk 00:13:28]} {[%emt 00:00:07]} Ng6
{[%clk 00:11:29]} {[%emt 00:00:10]} 20. Ne4 {[%clk 00:13:21]} {[%emt 00:00:12]}
Be7 {[%clk 00:10:49]} {[%emt 00:00:46]} 21. Qf3 {[%clk 00:12:58]} {[%emt
00:00:28]} Qd7 {[%clk 00:09:57]} {[%emt 00:00:57]} 22. Bb2 {[%clk 00:12:45]}
{[%emt 00:00:17]} Rad8 {[%clk 00:09:58]} {[%emt 00:00:04]} 23. Rad1 {[%clk
00:12:49]} {[%emt 00:00:01]} Qc8 {[%clk 00:09:23]} {[%emt 00:00:40]} 24. g3
{[%clk 00:12:34]} {[%emt 00:00:20]} Qxh3 {[%clk 00:09:08]} {[%emt 00:00:20]} 25.
c4 {[%clk 00:12:25]} {[%emt 00:00:14]} Nh4 {[%clk 00:08:35]} {[%emt 00:00:38]}
26. Qh1 {[%clk 00:12:29]} {[%emt 00:00:01]} Qxh1+ {[%clk 00:08:39]} {[%emt
00:00:02]} 27. Kxh1 {[%clk 00:12:33]} Nf3 {[%clk 00:08:43]} 28. Re3 {[%clk
00:12:29]} {[%emt 00:00:08]} Nd4 {[%clk 00:08:45]} {[%emt 00:00:04]} 29. c5
{[%clk 00:11:54]} {[%emt 00:00:40]} Nxb3 {[%clk 00:08:38]} {[%emt 00:00:12]} 30.
cxb6 {[%clk 00:11:57]} {[%emt 00:00:01]} cxb6 {[%clk 00:08:29]} {[%emt
00:00:15]} 31. Bxe5 {[%clk 00:12:01]} {[%emt 00:00:01]} f5 {[%clk 00:08:13]}
{[%emt 00:00:21]} 32. Nd2 {[%clk 00:11:03]} {[%emt 00:01:02]} Nc5 {[%clk
00:07:50]} {[%emt 00:00:29]} 33. d4 {[%clk 00:08:00]} {[%emt 00:03:08]} Nd7
{[%clk 00:07:10]} {[%emt 00:00:45]} 34. Bc7 {[%clk 00:04:40]} {[%emt 00:03:25]}
Rde8 {[%clk 00:07:13]} {[%emt 00:00:02]} 35. Nc4 {[%clk 00:04:27]} {[%emt
00:00:18]} Bd8 {[%clk 00:05:48]} {[%emt 00:01:29]} 36. Bxd8 {[%clk 00:04:09]}
{[%emt 00:00:23]} Rxd8 {[%clk 00:05:51]} {[%emt 00:00:02]} 37. d5 {[%clk
00:03:41]} {[%emt 00:00:33]} f4 {[%clk 00:05:29]} {[%emt 00:00:27]} 38. Re7
{[%clk 00:03:25]} {[%emt 00:00:21]} fxg3 {[%clk 00:05:24]} {[%emt 00:00:10]} 39.
fxg3 {[%clk 00:03:29]} {[%emt 00:00:01]} Rf3 {[%clk 00:04:49]} {[%emt
00:00:40]} 40. Kg2 {[%clk 00:03:28]} {[%emt 00:00:06]} Rc3 {[%clk 00:04:52]}
{[%emt 00:00:02]} 41. Rd4 {[%clk 00:03:10]} {[%emt 00:00:22]} Rc2+ {[%clk
00:04:32]} {[%emt 00:00:26]} 42. Kh3 {[%clk 00:03:08]} {[%emt 00:00:07]} h5
{[%clk 00:04:26]} {[%emt 00:00:11]} 43. d6 {[%clk 00:02:51]} {[%emt 00:00:22]}
Nf6 {[%clk 00:03:48]} {[%emt 00:00:43]} 44. Ne5 {[%clk 00:01:35]} {[%emt
00:01:21]} g5 {[%clk 00:03:44]} {[%emt 00:00:10]} 45. d7 {[%clk 00:00:40]}
{[%emt 00:01:00]} Rc5 {[%clk 00:02:36]} {[%emt 00:01:13]} 46. Nf7 {[%clk
00:00:22]} {[%emt 00:00:23]} Nxd7 {[%clk 00:00:48]} {[%emt 00:01:53]} 47. Nxd8
{[%clk 00:00:16]} {[%emt 00:00:11]} Ne5 {[%clk 00:00:42]} {[%emt 00:00:10]} 48.
Rxe5 {[%emt 00:00:14]} Rxe5 {[%clk 00:00:44]} 49. Nxb7 {[%clk 00:00:11]} {[%emt
00:00:04]} Kf7 {[%clk 00:00:40]} {[%emt 00:00:08]} 50. Nd6+ {[%clk 00:00:11]}
{[%emt 00:00:05]} Ke6 {[%clk 00:00:42]} {[%emt 00:00:02]} 51. Nc4 {[%clk
00:00:11]} {[%emt 00:00:06]} Re2 {[%clk 00:00:45]} {[%emt 00:00:03]} 52. Nxb6
{[%clk 00:00:07]} {[%emt 00:00:09]} Kf5 {[%clk 00:00:36]} {[%emt 00:00:14]} 53.
g4+ {[%clk 00:00:07]} {[%emt 00:00:04]} hxg4+ {[%clk 00:00:39]} {[%emt
00:00:02]} 54. Kg3 {[%clk 00:00:10]} {[%emt 00:00:02]} Re3+ {[%clk 00:00:39]}
{[%emt 00:00:05]} 55. Kg2 {[%clk 00:00:14]} {[%emt 00:00:01]} Rb3 {[%clk
00:00:36]} {[%emt 00:00:08]} 56. Nd7 {[%clk 00:00:17]} {[%emt 00:00:02]} Rb2+
{[%clk 00:00:10]} {[%emt 00:00:32]} 57. Kg3 {[%clk 00:00:20]} {[%emt 00:00:01]}
Rb3+ {[%clk 00:00:15]} {[%emt 00:00:01]} 58. Kf2 {[%clk 00:00:24]} Ke6 {[%clk
00:00:10]} {[%emt 00:00:09]} 59. Nc5+ {[%clk 00:00:28]} {[%emt 00:00:02]} Ke5
{[%clk 00:00:15]} {[%emt 00:00:06]} 60. Nxb3 {[%clk 00:00:35]} {[%emt
00:00:02]} 1-0

[Event "Rapid Tournament (RAP)"]
[Site "Biel, Switzerland"]
[Date "2026.07.12"]
[Round "8.18"]
[White "Kukushkin, Ivan"]
[Black "Tan, Jimmy"]
[Result "1-0"]
[TimeControl "15 + 5"]
[WhiteTitle "-"]
[BlackTitle "-"]
[WhiteFideId "11634103"]
[BlackFideId "129057499"]
[WhiteElo "2186"]
[BlackElo "1845"]

1. e4 {[%clk 00:15:07]} c6 {[%clk 00:15:07]} {[%emt 00:00:03]} 2. Nf3 {[%clk
00:15:10]} {[%emt 00:00:03]} d5 {[%clk 00:15:10]} {[%emt 00:00:01]} 3. exd5
{[%clk 00:15:14]} {[%emt 00:00:01]} cxd5 {[%clk 00:15:14]} {[%emt 00:00:02]} 4.
Ne5 {[%clk 00:15:17]} {[%emt 00:00:01]} Nf6 {[%clk 00:13:54]} {[%emt 00:01:24]}
5. d4 {[%clk 00:15:20]} {[%emt 00:00:03]} a6 {[%clk 00:13:35]} {[%emt
00:00:24]} 6. c3 {[%clk 00:15:22]} {[%emt 00:00:04]} Nc6 {[%clk 00:13:04]}
{[%emt 00:00:35]} 7. Bd3 {[%clk 00:15:25]} {[%emt 00:00:02]} e6 {[%clk
00:12:34]} {[%emt 00:00:35]} 8. O-O {[%clk 00:15:25]} {[%emt 00:00:04]} Be7
{[%clk 00:12:33]} {[%emt 00:00:06]} 9. Nd2 {[%clk 00:15:27]} {[%emt 00:00:03]}
O-O {[%clk 00:12:31]} {[%emt 00:00:08]} 10. Re1 {[%clk 00:15:28]} {[%emt
00:00:04]} Bd7 {[%clk 00:11:53]} {[%emt 00:00:42]} 11. a4 {[%clk 00:15:21]}
{[%emt 00:00:13]} Rb8 {[%clk 00:11:15]} {[%emt 00:00:43]} 12. Ndf3 {[%clk
00:15:16]} {[%emt 00:00:10]} Be8 {[%clk 00:10:20]} {[%emt 00:01:00]} 13. Bf4
{[%clk 00:14:51]} {[%emt 00:00:30]} Bd6 {[%clk 00:10:15]} {[%emt 00:00:11]} 14.
Qe2 {[%clk 00:14:38]} {[%emt 00:00:18]} Ne7 {[%clk 00:08:37]} {[%emt 00:01:43]}
15. Bg5 {[%clk 00:14:07]} {[%emt 00:00:35]} Ng6 {[%clk 00:08:21]} {[%emt
00:00:21]} 16. Nxg6 {[%clk 00:13:32]} {[%emt 00:00:41]} hxg6 {[%clk 00:08:24]}
{[%emt 00:00:01]} 17. Ne5 {[%clk 00:13:33]} {[%emt 00:00:04]} Be7 {[%clk
00:07:37]} {[%emt 00:00:52]} 18. h4 {[%clk 00:13:04]} {[%emt 00:00:35]} Nh5
{[%clk 00:07:08]} {[%emt 00:00:33]} 19. Nxg6 {[%clk 00:12:31]} {[%emt
00:00:37]} Bxg5 {[%clk 00:04:19]} {[%emt 00:02:56]} 20. Qxh5 {[%clk 00:12:26]}
{[%emt 00:00:09]} fxg6 {[%clk 00:04:06]} {[%emt 00:00:18]} 21. Qxg5 {[%clk
00:12:29]} {[%emt 00:00:02]} Qb6 {[%clk 00:02:58]} {[%emt 00:01:13]} 22. Re2
{[%clk 00:12:24]} {[%emt 00:00:10]} Rf6 {[%clk 00:03:00]} {[%emt 00:00:03]} 23.
a5 {[%clk 00:12:16]} {[%emt 00:00:13]} Qc7 {[%clk 00:02:53]} {[%emt 00:00:12]}
24. Rae1 {[%clk 00:12:16]} {[%emt 00:00:06]} Bf7 {[%clk 00:02:54]} {[%emt
00:00:04]} 25. Re3 {[%clk 00:12:04]} {[%emt 00:00:16]} Qxa5 {[%clk 00:02:46]}
{[%emt 00:00:14]} 26. h5 {[%clk 00:12:03]} {[%emt 00:00:05]} gxh5 {[%clk
00:00:36]} {[%emt 00:02:15]} 27. Rg3 {[%clk 00:12:07]} Kf8 {[%clk 00:00:31]}
{[%emt 00:00:10]} 28. Qxg7+ {[%clk 00:12:09]} {[%emt 00:00:03]} Ke7 {[%clk
00:00:36]} 29. Bg6 {[%clk 00:11:03]} {[%emt 00:01:11]} Rg8 {[%clk 00:00:27]}
{[%emt 00:00:14]} 30. Rxe6+ {[%clk 00:11:02]} {[%emt 00:00:06]} Kxe6 {[%clk
00:00:08]} {[%emt 00:00:24]} 31. Re3+ {[%clk 00:11:06]} {[%emt 00:00:01]} Kd7
{[%clk 00:00:10]} {[%emt 00:00:04]} 32. Qxf6 {[%clk 00:11:09]} {[%emt
00:00:02]} Bxg6 {[%clk 00:00:09]} {[%emt 00:00:05]} 33. Re7+ {[%clk 00:11:09]}
{[%emt 00:00:05]} Kc8 {[%clk 00:00:13]} {[%emt 00:00:01]} 34. Qe6+ {[%clk
00:11:13]} {[%emt 00:00:02]} Kb8 {[%clk 00:00:17]} 35. Qxg8+ {[%clk 00:11:14]}
{[%emt 00:00:03]} Ka7 {[%clk 00:00:22]} 36. Qxg6 {[%clk 00:11:15]} {[%emt
00:00:05]} 1-0